bitfinex-derivatives/quotes_BTCF0:USTF0_20250329
["timestamp","ask_amount","ask_price","bid_price","bid_amount"]
[1743275415839,0.25997701,82445.0,82444.0,0.006]
[1743275416043,0.62077701,82445.0,82444.0,0.006]
[1743275416448,0.62077701,82445.0,82444.0,0.06612]
[1743275416634,0.56167701,82445.0,82444.0,0.06612]
[1743275416834,0.62077701,82445.0,82444.0,0.125]
[1743275417039,0.62077701,82445.0,82444.0,0.12572]
[1743275417339,0.25997701,82445.0,82444.0,0.12572]
[1743275419738,0.25997701,82445.0,82444.0,0.125]
[1743275421248,0.25997701,82445.0,82444.0,0.12564]
[1743275421452,0.25997701,82445.0,82444.0,0.125]
[1743275422152,0.25997701,82445.0,82444.0,0.0648]
[1743275422351,0.31887701,82445.0,82444.0,0.0648]
[1743275427355,0.31887701,82445.0,82444.0,0.06544]
[1743275427751,0.31887701,82445.0,82444.0,0.0648]
[1743275429154,0.32850268,82445.0,82444.0,0.0648]
[1743275429651,0.32850268,82445.0,82444.0,0.06544]
[1743275430950,0.32850268,82445.0,82444.0,0.06244]
[1743275431252,0.32850268,82445.0,82444.0,0.06444]
[1743275431955,0.32850268,82445.0,82444.0,0.06344]
[1743275432160,0.43745952,82445.0,82444.0,0.06344]
[1743275432658,0.43745952,82445.0,82444.0,0.0628]
[1743275433857,0.43745952,82445.0,82444.0,0.06408]
[1743275434956,0.43748157,82445.0,82444.0,0.06408]
[1743275435456,0.42783385,82445.0,82444.0,0.06408]
[1743275435646,0.43748902,82445.0,82444.0,0.06408]
[1743275436451,0.32853218,82445.0,82444.0,0.06408]
[1743275441365,0.32853218,82445.0,82444.0,0.06208]
[1743275441662,0.32853218,82445.0,82444.0,0.1834205]
[1743275441663,0.13227417,82445.0,82444.0,0.1834205]
[1743275441858,0.13227417,82445.0,82444.0,0.2431205]
[1743275442050,0.122619,82445.0,82444.0,0.2411205]
[1743275442245,0.122619,82445.0,82444.0,0.11978]
[1743275442551,0.30415947,82445.0,82444.0,0.11978]
[1743275442746,0.30415947,82445.0,82444.0,0.2411205]
[1743275443653,0.42805947,82445.0,82444.0,0.2411205]
[1743275444155,0.42805947,82445.0,82444.0,0.11978]
[1743275444557,0.44362308,82445.0,82444.0,0.11978]
[1743275444756,0.44362308,82445.0,82444.0,0.06008]
[1743275445070,0.45328465,82445.0,82444.0,0.00128]
[1743275445452,0.45328465,82445.0,82444.0,0.05848]
[1743275446658,0.27174418,82445.0,82444.0,0.05848]
[1743275446956,0.27174418,82445.0,82444.0,0.00072]
[1743275448251,0.1213405,82444.0,82443.0,0.00048518]
[1743275448457,0.13236207,82444.0,82443.0,0.00048518]
[1743275448659,0.25026207,82444.0,82443.0,0.00120518]
[1743275451065,0.25026207,82444.0,82443.0,0.12254718]
[1743275451368,0.25026207,82444.0,82443.0,0.00120518]
[1743275451759,0.25026207,82444.0,82443.0,0.05850518]
[1743275451960,0.25026207,82444.0,82443.0,0.11820518]
[1743275452458,0.25026207,82444.0,82443.0,0.23954718]
[1743275453359,0.39581257,82444.0,82443.0,0.23954718]
[1743275457359,0.39581257,82444.0,82443.0,0.11820518]
[1743275460370,0.39581257,82444.0,82443.0,0.23954718]
[1743275460979,0.386151,82444.0,82443.0,0.23954718]
[1743275461271,0.39596681,82444.0,82443.0,0.23954718]
[1743275463269,0.39596681,82444.0,82443.0,0.17984718]
[1743275464874,0.39596681,82444.0,82443.0,0.24104718]
[1743275465062,0.33486681,82444.0,82443.0,0.24104718]
[1743275465263,0.15672631,82444.0,82443.0,0.24104718]
[1743275465860,0.27806681,82444.0,82443.0,0.24104718]
[1743275466272,0.27806681,82444.0,82443.0,0.25645863]
[1743275468466,0.27806681,82444.0,82443.0,0.24104718]
[1743275468772,0.13251631,82444.0,82443.0,0.24104718]
[1743275468972,0.13251631,82444.0,82443.0,0.65064718]
[1743275469173,0.13251631,82444.0,82443.0,1.02675437]
[1743275469364,0.13115631,82444.0,82443.0,1.02675437]
[1743275471972,0.13115631,82444.0,82443.0,1.01144718]
[1743275472369,0.2046611,82444.0,82443.0,1.01144718]
[1743275472572,0.2046611,82444.0,82443.0,0.89294718]
[1743275472769,0.2673411,82444.0,82443.0,0.89294718]
[1743275473170,0.2673411,82444.0,82443.0,0.77160518]
[1743275474277,0.27394482,82444.0,82443.0,0.77160518]
[1743275474668,0.1213464,82440.0,82439.0,0.29044962]
[1743275474867,0.147367,82440.0,82439.0,0.29108962]
[1743275475076,0.148847,82440.0,82439.0,0.00064]
[1743275475280,0.1213508,82437.0,82436.0,0.1213518]
[1743275475577,0.1488914,82437.0,82436.0,0.1220318]
[1743275476871,0.1498914,82437.0,82436.0,0.00068]
[1743275477267,0.1213582,82432.0,82431.0,0.0621]
[1743275477467,0.1488988,82432.0,82431.0,0.06358]
[1743275478077,0.2748392,82432.0,82431.0,0.06358]
[1743275478286,0.29010721,82432.0,82431.0,0.00148]
[1743275479589,0.29196461,82432.0,82431.0,0.00248]
[1743275480382,0.41888461,82432.0,82431.0,0.00248]
[1743275480978,0.42796212,82432.0,82431.0,0.00248]
[1743275482584,0.42796212,82432.0,82431.0,0.00148]
[1743275482785,0.42996212,82432.0,82431.0,0.00148]
[1743275483172,0.1213641,82428.0,82424.0,0.1213693]
[1743275483372,0.1507221,82428.0,82427.0,0.00196527]
[1743275483887,0.1573625,82428.0,82427.0,0.00196527]
[1743275484088,0.2764625,82428.0,82427.0,0.00196527]
[1743275484384,0.2784625,82428.0,82427.0,0.00196527]
[1743275485180,0.2794625,82428.0,82427.0,0.00196527]
[1743275485380,0.2794625,82428.0,82427.0,0.12333077]
[1743275485582,0.2794625,82428.0,82427.0,0.00196527]
[1743275488986,0.2515845,82428.0,82427.0,0.00196527]
[1743275489198,0.27837839,82428.0,82427.0,0.00196527]
[1743275495180,0.2783139,82428.0,82427.0,0.00196527]
[1743275496699,0.2783139,82428.0,82427.0,0.12333077]
[1743275497304,0.2783139,82428.0,82427.0,0.00196527]
[1743275498701,0.2773139,82428.0,82427.0,0.00196527]
[1743275499103,0.2803139,82428.0,82427.0,0.00196527]
[1743275501306,0.2194139,82428.0,82427.0,0.12333077]
[1743275501507,0.20296504,82428.0,82427.0,0.12333077]
[1743275501698,0.19632464,82428.0,82427.0,0.24613077]
[1743275501904,0.25452464,82428.0,82427.0,0.24613077]
[1743275502413,0.2542154,82428.0,82427.0,0.24613077]
[1743275503012,0.36316088,82428.0,82427.0,0.24613077]
[1743275503414,0.30496088,82428.0,82427.0,0.60693077]
[1743275505116,0.29498958,82428.0,82427.0,0.60693077]
[1743275505718,0.30475161,82428.0,82427.0,0.60693077]
[1743275506118,0.19580613,82428.0,82427.0,0.60693077]
[1743275506320,0.25740609,82428.0,82427.0,0.60693077]
[1743275506816,0.2476441,82428.0,82427.0,0.60693077]
[1743275507315,0.257407,82428.0,82427.0,0.60693077]
[1743275508421,0.2476441,82428.0,82427.0,0.60693077]
[1743275508921,0.25746324,82428.0,82427.0,0.60693077]
[1743275512917,0.2736591,82428.0,82427.0,0.60693077]
[1743275513721,0.28025484,82428.0,82427.0,0.60693077]
[1743275513921,0.26405898,82428.0,82427.0,0.54653077]
[1743275514313,0.37300446,82428.0,82427.0,0.54653077]
[1743275514714,0.37300446,82428.0,82427.0,0.36276527]
[1743275515020,0.3896226,82428.0,82427.0,0.36276527]
[1743275515212,0.3896226,82428.0,82427.0,0.48413077]
[1743275517525,0.42622762,82428.0,82427.0,0.48413077]
[1743275520826,0.42622762,82428.0,82427.0,0.36276527]
[1743275522519,0.42622762,82428.0,82427.0,0.00196527]
[1743275522719,0.42622762,82428.0,82427.0,0.00048527]
[1743275523627,0.42622762,82428.0,82427.0,0.12185077]
[1743275523931,0.42622762,82428.0,82427.0,0.12253077]
[1743275524125,0.40960948,82428.0,82427.0,0.12253077]
[1743275524325,0.40960948,82428.0,82427.0,0.24303077]
[1743275525932,0.26405898,82428.0,82427.0,0.24303077]
[1743275528123,0.25746324,82428.0,82427.0,0.24303077]
[1743275530434,0.2573191,82428.0,82427.0,0.24303077]
[1743275535239,0.26390502,82428.0,82427.0,0.24303077]
[1743275536935,0.2573191,82428.0,82427.0,0.24303077]
[1743275537133,0.25736848,82428.0,82427.0,0.24303077]
[1743275538840,0.26395521,82428.0,82427.0,0.24303077]
[1743275539648,0.26395521,82428.0,82427.0,0.60383077]
[1743275539945,0.26095521,82428.0,82427.0,0.60383077]
[1743275540644,0.25995521,82428.0,82427.0,0.60383077]
[1743275540844,0.26095521,82428.0,82427.0,0.60383077]
[1743275541145,0.25436848,82428.0,82427.0,0.60383077]
[1743275541533,0.25536848,82428.0,82427.0,0.60383077]
[1743275541939,0.07240438,82428.0,82427.0,0.60383077]
[1743275542241,0.31324507,82454.0,82447.0,0.1213361]
[1743275542439,0.0016619,82448.0,82447.0,0.4827761]
[1743275542837,0.0589619,82448.0,82447.0,0.4827761]
[1743275543439,0.0589619,82448.0,82447.0,0.5421761]
[1743275544540,0.0639619,82448.0,82447.0,0.55708895]
[1743275544736,0.0116619,82448.0,82447.0,0.55708895]
[1743275545134,0.0583,82453.0,82452.0,0.1213287]
[1743275545339,0.05938,82453.0,82452.0,0.1219687]
[1743275546143,0.00108,82453.0,82452.0,0.2451687]
[1743275546647,0.11010786,82453.0,82452.0,0.2451687]
[1743275546843,0.16750786,82453.0,82452.0,0.2451687]
[1743275547036,0.17250786,82453.0,82452.0,0.2451687]
[1743275547640,0.17750786,82453.0,82452.0,0.2451687]
[1743275548042,0.17750786,82453.0,82452.0,0.6059687]
[1743275548940,0.24080786,82453.0,82452.0,0.6059687]
[1743275550948,0.13178,82453.0,82452.0,0.6059687]
[1743275551164,0.13178,82453.0,82452.0,1.0155687]
[1743275551453,0.1307,82453.0,82452.0,1.0155687]
[1743275553454,0.13174001,82453.0,82452.0,1.02481619]
[1743275554663,0.25306731,82453.0,82452.0,1.02481619]
[1743275555958,0.13174001,82453.0,82452.0,1.02481619]
[1743275557464,0.25306731,82453.0,82452.0,1.02481619]
[1743275557659,0.25306731,82453.0,82452.0,0.77104]
[1743275557858,0.25306731,82453.0,82452.0,0.8923687]
[1743275558364,0.26259105,82453.0,82452.0,0.8923687]
[1743275559064,0.14126375,82453.0,82452.0,0.8923687]
[1743275559261,0.14022374,82453.0,82452.0,0.8923687]
[1743275559754,0.14126375,82453.0,82452.0,0.9519687]
[1743275560151,0.14022374,82453.0,82452.0,0.96096072]
[1743275560352,0.1307,82453.0,82452.0,0.96096072]
[1743275560761,0.2520273,82453.0,82452.0,0.90136072]
[1743275561063,0.25306731,82453.0,82452.0,0.90136072]
[1743275562861,0.25306731,82453.0,82452.0,0.77104]
[1743275563062,0.25306731,82453.0,82452.0,0.41024]
[1743275563254,0.26271358,82453.0,82452.0,0.12554]
[1743275563863,0.26271358,82453.0,82452.0,0.12622]
[1743275564375,0.26929374,82453.0,82452.0,0.12622]
[1743275564967,0.28372403,82453.0,82452.0,0.12622]
[1743275568962,0.40500598,82453.0,82452.0,0.12622]
[1743275569159,0.40500598,82453.0,82452.0,0.12554]
[1743275570664,0.40502727,82453.0,82452.0,0.12554]
[1743275571370,0.28374532,82453.0,82452.0,0.12554]
[1743275571562,0.41022532,82453.0,82452.0,0.12554]
[1743275572562,0.77102532,82453.0,82452.0,0.12554]
[1743275574872,0.64454532,82453.0,82452.0,0.2468687]
[1743275575073,0.64454532,82453.0,82452.0,0.2475087]
[1743275575284,0.6282976,82453.0,82452.0,0.2475087]
[1743275575482,0.2674976,82453.0,82452.0,0.2475087]
[1743275575778,0.2674976,82453.0,82452.0,0.3629087]
[1743275576178,0.07434001,82453.0,82452.0,0.3629087]
[1743275576371,0.01,82453.0,82452.0,0.37729176]
[1743275576571,0.009,82453.0,82452.0,0.37729176]
[1743275576877,0.13156731,82453.0,82452.0,0.3629087]
[1743275577963,0.13056731,82453.0,82452.0,0.3629087]
[1743275582283,0.13056731,82453.0,82452.0,0.7237087]
[1743275586185,0.00924001,82453.0,82452.0,0.7237087]
[1743275586381,0.008,82453.0,82452.0,0.7237087]
[1743275586689,0.1213185,82459.0,82458.0,0.1819762]
[1743275586880,0.12255851,82459.0,82458.0,0.1827362]
[1743275587084,0.12255851,82459.0,82458.0,0.2989362]
[1743275587877,0.12755851,82459.0,82458.0,0.2989362]
[1743275589177,0.13255851,82459.0,82458.0,0.2989362]
[1743275589581,0.13255851,82459.0,82458.0,0.31308163]
[1743275589783,0.13255851,82459.0,82458.0,0.67388163]
[1743275590185,0.13255851,82459.0,82458.0,0.6597362]
[1743275594584,0.13255851,82459.0,82458.0,0.2989362]
[1743275594877,0.13255851,82459.0,82458.0,0.6597362]
[1743275595078,0.13255851,82459.0,82458.0,0.5384192]
[1743275595679,0.25155851,82459.0,82458.0,0.5384192]
[1743275597495,0.13024001,82459.0,82458.0,0.5384192]
[1743275597687,0.01124001,82459.0,82458.0,0.5384192]
[1743275599086,0.1313184,82459.0,82458.0,0.5384192]
[1743275599287,0.13255841,82459.0,82458.0,0.5384192]
[1743275599486,0.01124001,82459.0,82458.0,0.5384192]
[1743275599878,0.13255841,82459.0,82458.0,0.5384192]
[1743275603185,0.19405841,82459.0,82458.0,0.5384192]
[1743275605991,0.18905841,82459.0,82458.0,0.5384192]
[1743275606189,0.18405841,82459.0,82458.0,0.5384192]
[1743275606598,0.06274001,82459.0,82458.0,0.5384192]
[1743275606798,0.0615,82459.0,82458.0,0.5384192]
[1743275606999,0.1242,82459.0,82458.0,0.5384192]
[1743275607199,0.1242,82459.0,82458.0,0.75657341]
[1743275607498,0.2467984,82459.0,82458.0,0.75657341]
[1743275608096,0.26128392,82459.0,82458.0,0.75657341]
[1743275608289,0.26128392,82459.0,82458.0,0.64037341]
[1743275608892,0.26128392,82459.0,82458.0,0.70187341]
[1743275609189,0.2467984,82459.0,82458.0,0.70187341]
[1743275609394,0.2467984,82459.0,82458.0,0.76197341]
[1743275609595,0.2477984,82459.0,82458.0,0.76197341]
[1743275610701,0.2487984,82459.0,82458.0,0.5438192]
[1743275611902,0.2477984,82459.0,82458.0,0.5438192]
[1743275612094,0.2487984,82459.0,82458.0,0.5438192]
[1743275617102,0.2487984,82459.0,82458.0,0.76175495]
[1743275621206,0.2487984,82459.0,82458.0,0.5438192]
[1743275625199,0.35770767,82459.0,82458.0,0.5438192]
[1743275628802,0.35770767,82459.0,82458.0,0.00076]
[1743275629109,0.35770767,82459.0,82455.0,0.29044962]
[1743275629110,0.1213228,82456.0,82455.0,0.29044962]
[1743275629302,0.4836428,82456.0,82455.0,0.29108962]
[1743275630006,0.60491592,82456.0,82455.0,0.29108962]
[1743275631207,0.60491592,82456.0,82455.0,0.19638962]
[1743275631607,0.1213302,82451.0,82450.0,0.36325179]
[1743275631809,0.1213302,82451.0,82427.0,0.06116767]
[1743275631810,0.1213376,82446.0,82427.0,0.00048527]
[1743275632105,0.1213537,82435.0,82429.0,1.2151285]
[1743275632314,0.4821537,82435.0,82429.0,1.2151285]
[1743275632500,0.0606785,82433.0,82432.0,0.36346288]
[1743275632701,0.55739973,82433.0,82432.0,0.36346288]
[1743275634306,0.56669351,82433.0,82432.0,0.36346288]
[1743275634507,0.62819351,82433.0,82432.0,0.36346288]
[1743275635107,0.62719351,82433.0,82432.0,0.36346288]
[1743275635315,0.62719351,82433.0,82432.0,0.36546288]
[1743275635814,0.62719351,82433.0,82432.0,0.36746288]
[1743275638013,0.62719351,82433.0,82428.0,0.059]
[1743275638014,0.1213626,82429.0,82428.0,0.059]
[1743275638213,0.4838026,82429.0,82428.0,0.059]
[1743275638806,0.6035026,82429.0,82428.0,0.059]
[1743275639008,0.6035026,82429.0,82428.0,0.062]
[1743275639209,0.2427026,82429.0,82428.0,0.062]
[1743275639516,0.6035026,82429.0,82428.0,0.065]
[1743275640302,0.6035026,82429.0,82428.0,0.1235]
[1743275640910,0.2427026,82429.0,82428.0,0.1235]
[1743275641112,0.6035026,82429.0,82428.0,0.1235]
[1743275642018,0.2427026,82429.0,82428.0,0.1235]
[1743275642516,0.6035026,82429.0,82428.0,0.1235]
[1743275642911,0.5437026,82429.0,82428.0,0.1235]
[1743275643216,0.1829026,82429.0,82428.0,0.6056641]
[1743275643719,0.1829026,82429.0,82428.0,0.4843]
[1743275644120,0.1829026,82429.0,82428.0,0.6056641]
[1743275644315,0.1230026,82429.0,82428.0,0.6056641]
[1743275652319,0.1230026,82429.0,82428.0,0.2448641]
[1743275652521,0.1230026,82429.0,82428.0,0.6056641]
[1743275654319,0.1230026,82429.0,82428.0,0.4843]
[1743275654511,0.1230026,82429.0,82428.0,0.1235]
[1743275654718,0.13258424,82429.0,82428.0,0.1235]
[1743275655021,0.19458424,82429.0,82428.0,0.1235]
[1743275655526,0.13258424,82429.0,82428.0,0.2448641]
[1743275655913,0.13914131,82429.0,82428.0,0.2448641]
[1743275660223,0.01777871,82429.0,82428.0,0.2448641]
[1743275660529,0.13914131,82429.0,82428.0,0.2448641]
[1743275660727,0.12955967,82429.0,82428.0,0.2448641]
[1743275661143,0.12955967,82429.0,82428.0,0.6056641]
[1743275661828,0.10851839,82431.0,82430.0,0.1213611]
[1743275662033,0.01687839,82431.0,82430.0,0.1220011]
[1743275663115,0.01687839,82431.0,82430.0,0.1240011]
[1743275663320,0.18086399,82438.0,82431.0,0.0606791]
[1743275663526,0.18086399,82438.0,82437.0,0.4821508]
[1743275663527,0.18166399,82438.0,82437.0,0.4821508]
[1743275663721,0.08886399,82438.0,82437.0,0.4827908]
[1743275664129,0.08886399,82438.0,82437.0,0.5421908]
[1743275665226,0.08886399,82438.0,82437.0,0.6039908]
[1743275666731,0.08806399,82438.0,82437.0,0.6039908]
[1743275667032,0.1781674,82448.0,82437.0,0.6039908]
[1743275667033,0.1213441,82442.0,82440.0,0.1213464]
[1743275667335,0.1213441,82442.0,82440.0,0.1219864]
[1743275667731,0.1213441,82442.0,82440.0,0.2436864]
[1743275668132,0.1225268,82441.0,82440.0,0.2436864]
[1743275670431,0.1225268,82441.0,82440.0,0.6044864]
[1743275670633,0.1225268,82441.0,82440.0,0.2436864]
[1743275670842,0.1233668,82441.0,82440.0,0.2436864]
[1743275671325,0.1233668,82441.0,82440.0,0.6044864]
[1743275671525,0.1225268,82441.0,82440.0,0.6044864]
[1743275672227,0.1234068,82441.0,82440.0,0.6044864]
[1743275678531,0.1234068,82441.0,82440.0,0.2436864]
[1743275678833,0.1234068,82441.0,82440.0,0.6044864]
[1743275680534,0.1234068,82441.0,82440.0,0.2436864]
[1743275680933,0.1234068,82441.0,82440.0,0.6044864]
[1743275681736,0.2442068,82441.0,82440.0,0.6044864]
[1743275685052,0.2442068,82441.0,82440.0,0.2436864]
[1743275685344,0.2442068,82441.0,82440.0,0.6044864]
[1743275686044,0.2442068,82441.0,82440.0,0.2436864]
[1743275686238,0.2442068,82441.0,82440.0,0.6044864]
[1743275687548,0.1228619,82441.0,82440.0,0.6044864]
[1743275687749,0.1776361,82447.0,82446.0,0.1213376]
[1743275687947,0.1236601,82459.0,82447.0,0.0606678]
[1743275688250,0.2449837,82459.0,82458.0,0.4821199]
[1743275688641,0.2457837,82459.0,82458.0,0.4821199]
[1743275688837,0.063,82459.0,82458.0,0.4821199]
[1743275689146,0.1214886,82467.0,82466.0,0.1213081]
[1743275689446,0.1827886,82467.0,82466.0,0.4821081]
[1743275690134,0.1827886,82467.0,82466.0,0.6007081]
[1743275691546,0.1857886,82467.0,82466.0,0.6007081]
[1743275692148,0.1917886,82467.0,82466.0,0.6007081]
[1743275692346,0.1917886,82467.0,82466.0,0.4794]
[1743275692659,0.121317,82460.0,82459.0,0.4214586]
[1743275693541,0.121317,82460.0,82459.0,0.3608]
[1743275693744,0.122117,82460.0,82459.0,0.36144]
[1743275693940,0.13591931,82460.0,82459.0,0.36144]
[1743275694158,0.13991931,82460.0,82459.0,0.36144]
[1743275695046,0.14491931,82460.0,82459.0,0.36144]
[1743275697048,0.14491931,82460.0,82459.0,0.00064]
[1743275697954,0.1213199,82458.0,82457.0,0.1213199]
[1743275698155,0.1221599,82458.0,82457.0,0.1219999]
[1743275699265,0.1311599,82458.0,82457.0,0.1219999]
[1743275699462,0.1311599,82458.0,82457.0,0.1833999]
[1743275699862,0.1311599,82458.0,82457.0,0.2455999]
[1743275701257,0.1311599,82458.0,82457.0,0.00068]
[1743275707059,0.0606636,82454.0,82450.0,0.0001819]
[1743275707263,0.1213302,82451.0,82450.0,0.0008219]
[1743275707464,0.1223302,82451.0,82450.0,0.0001819]
[1743275708054,0.1223302,82451.0,82450.0,0.0009019]
[1743275708260,0.1223302,82451.0,82450.0,0.1821336]
[1743275709063,0.1253302,82451.0,82450.0,0.1821336]
[1743275709265,0.1283302,82451.0,82450.0,0.1821336]
[1743275713461,0.1283302,82451.0,82450.0,0.2434336]
[1743275713661,0.2487302,82451.0,82450.0,0.2434336]
[1743275716367,0.007,82451.0,82450.0,0.2434336]
[1743275716566,0.1273302,82451.0,82450.0,0.2434336]
[1743275716760,0.1283302,82451.0,82450.0,0.2434336]
[1743275718170,0.1283302,82451.0,82450.0,0.1221019]
[1743275718359,0.2468302,82451.0,82450.0,0.0622019]
[1743275718571,0.2468302,82451.0,82450.0,0.0009019]
[1743275718967,0.1213464,82440.0,82439.0,0.21748123]
[1743275719170,0.1213464,82440.0,82439.0,0.21812123]
[1743275719171,0.12258641,82440.0,82439.0,0.21812123]
[1743275719962,0.24578641,82440.0,82439.0,0.21812123]
[1743275721768,0.1213537,82435.0,82427.0,0.00048527]
[1743275722066,0.1213537,82435.0,82434.0,0.29122164]
[1743275722270,0.06068,82431.0,82420.0,0.21797115]
[1743275722468,0.1213744,82421.0,82420.0,0.21797115]
[1743275722667,0.13249595,82421.0,82420.0,0.21797115]
[1743275723066,0.13149595,82421.0,82420.0,0.21797115]
[1743275723278,0.12197441,82421.0,82420.0,0.21797115]
[1743275723570,0.24781441,82421.0,82420.0,0.21797115]
[1743275723775,0.24681441,82421.0,82420.0,0.22197115]
[1743275724172,0.25636155,82421.0,82420.0,0.22197115]
[1743275724677,0.25636155,82421.0,82420.0,0.22597115]
[1743275725277,0.26981278,82421.0,82420.0,0.22597115]
[1743275725672,0.2773372,82421.0,82420.0,0.22197115]
[1743275726270,0.28626778,82421.0,82420.0,0.22197115]
[1743275726671,0.28826778,82421.0,82420.0,0.21797115]
[1743275726882,0.1213788,82418.0,82417.0,0.0616]
[1743275727075,0.13905037,82418.0,82417.0,0.0616]
[1743275727272,0.12950323,82418.0,82417.0,0.0616]
[1743275727476,0.12950323,82418.0,82399.0,0.12584]
[1743275727477,0.1214038,82401.0,82400.0,0.0201369]
[1743275727666,0.60964381,82401.0,82400.0,0.0201369]
[1743275728373,0.1214112,82396.0,82390.0,0.1237]
[1743275728681,0.1230912,82396.0,82390.0,0.1237]
[1743275729068,0.24444968,82396.0,82390.0,0.1237]
[1743275729572,0.24444968,82396.0,82395.0,0.00148546]
[1743275729780,0.24444968,82396.0,82395.0,6e-08]
[1743275729980,0.25803108,82396.0,82395.0,6e-08]
[1743275731068,0.25803108,82396.0,82395.0,0.00100006]
[1743275731476,0.12142,82390.0,82389.0,0.29058164]
[1743275731682,0.60970001,82390.0,82389.0,0.29058164]
[1743275732379,0.72830001,82390.0,82389.0,0.29058164]
[1743275732566,0.72830001,82390.0,82389.0,0.29258164]
[1743275732775,0.1214259,82386.0,82379.0,0.00048556]
[1743275733078,0.1214348,82380.0,82379.0,0.00048556]
[1743275733284,0.13261802,82380.0,82379.0,0.00048556]
[1743275733476,0.13061802,82380.0,82379.0,0.00048556]
[1743275733670,0.13061368,82380.0,82379.0,0.00048556]
[1743275733865,0.25321368,82380.0,82379.0,0.00048556]
[1743275734272,0.25321368,82380.0,82379.0,0.00448556]
[1743275734469,0.1214436,82374.0,82373.0,0.0619]
[1743275734680,0.13062248,82374.0,82373.0,0.0619]
[1743275735380,0.25012248,82374.0,82373.0,0.0619]
[1743275737671,0.26343946,82374.0,82373.0,0.0619]
[1743275738379,0.27245163,82374.0,82373.0,0.0619]
[1743275741383,0.28886266,82374.0,82373.0,0.0619]
[1743275742668,0.29573203,82374.0,82373.0,0.0619]
[1743275743480,0.23723203,82374.0,82373.0,0.0619]
[1743275743785,0.23723203,82374.0,82373.0,0.1251]
[1743275744388,0.220821,82374.0,82373.0,0.1251]
[1743275745081,0.21395163,82374.0,82373.0,0.1251]
[1743275746182,0.15295163,82374.0,82373.0,0.1251]
[1743275746677,0.13062248,82374.0,82373.0,0.1251]
[1743275747072,0.13724444,82374.0,82373.0,0.1834]
[1743275747278,0.15066765,82374.0,82373.0,0.1834]
[1743275748088,0.13724444,82374.0,82373.0,0.1834]
[1743275749786,0.13735656,82374.0,82373.0,0.1834]
[1743275750297,0.15088865,82374.0,82373.0,0.1834]
[1743275750590,0.15098713,82374.0,82373.0,0.1202]
[1743275751086,0.20928713,82374.0,82373.0,0.1202]
[1743275751486,0.22589609,82374.0,82373.0,0.1202]
[1743275751878,0.22589609,82374.0,82373.0,0.09286655]
[1743275752074,0.23698529,82374.0,82373.0,0.09286655]
[1743275755489,0.24098529,82374.0,82373.0,0.09286655]
[1743275755897,0.22989609,82374.0,82373.0,0.09286655]
[1743275756188,0.23289609,82374.0,82373.0,0.09286655]
[1743275756692,0.21628713,82374.0,82373.0,0.09286655]
[1743275757191,0.21328713,82374.0,82373.0,0.09286655]
[1743275757388,0.21628713,82374.0,82373.0,0.09286655]
[1743275757585,0.20649766,82374.0,82373.0,0.09286655]
[1743275757985,0.20549766,82374.0,82373.0,0.09286655]
[1743275758788,0.20649766,82374.0,82373.0,0.09286655]
[1743275760596,0.21609831,82374.0,82373.0,0.09286655]
[1743275761000,0.09665471,82374.0,82363.0,0.36128565]
[1743275761197,0.1214584,82364.0,82363.0,0.36128565]
[1743275761500,0.13273905,82364.0,82363.0,0.48274545]
[1743275761800,0.13936101,82364.0,82363.0,0.36128565]
[1743275762195,0.13936101,82364.0,82363.0,0.66404545]
[1743275762493,0.14036101,82364.0,82363.0,0.66404545]
[1743275762796,0.25806101,82364.0,82363.0,0.54258565]
[1743275763595,0.25806101,82364.0,82363.0,0.66404545]
[1743275763787,0.27146829,82364.0,82363.0,0.66404545]
[1743275764489,0.27146829,82364.0,82363.0,0.54258565]
[1743275764692,0.27246829,82364.0,82363.0,0.54258565]
[1743275765299,0.27246829,82364.0,82363.0,0.36128565]
[1743275765601,0.39826829,82364.0,82363.0,0.36128565]
[1743275765997,0.40941931,82364.0,82363.0,0.36128565]
[1743275766192,0.40941931,82364.0,82363.0,0.33395071]
[1743275766901,0.39826829,82364.0,82363.0,0.33395071]
[1743275767096,0.1214687,82357.0,82356.0,0.29058164]
[1743275767299,0.13266936,82357.0,82356.0,0.34808164]
[1743275767491,0.13266936,82357.0,82356.0,0.0575]
[1743275767697,0.13929132,82357.0,82356.0,0.0575]
[1743275767901,0.25859132,82357.0,82356.0,0.12]
[1743275768306,0.0607351,82356.0,82352.0,0.29058164]
[1743275768509,0.1214746,82353.0,82352.0,0.41008164]
[1743275768708,0.13267526,82353.0,82352.0,0.41008164]
[1743275769102,0.13929722,82353.0,82352.0,0.41008164]
[1743275769407,0.19749722,82353.0,82352.0,0.41008164]
[1743275769598,0.19749722,82353.0,82352.0,0.41108164]
[1743275769800,0.19749722,82353.0,82352.0,0.53255774]
[1743275770005,0.19749722,82353.0,82352.0,0.53155774]
[1743275770300,0.19749722,82353.0,82352.0,0.53255774]
[1743275770806,0.18789657,82353.0,82352.0,0.53255774]
[1743275771005,0.12969657,82353.0,82352.0,0.53255774]
[1743275771209,0.12809656,82353.0,82352.0,0.53255774]
[1743275771401,0.12969657,82353.0,82352.0,0.53255774]
[1743275772010,0.12307461,82353.0,82352.0,0.2419761]
[1743275773910,0.00160001,82353.0,82352.0,0.2419761]
[1743275776402,0.12307461,82353.0,82352.0,0.2419761]
[1743275776898,0.00160001,82353.0,82352.0,0.2419761]
[1743275777210,0.1214694,82357.0,82356.0,0.0607344]
[1743275777411,0.12306941,82357.0,82356.0,0.5436344]
[1743275778311,0.00160001,82357.0,82356.0,0.5436344]
[1743275778511,0.00260001,82357.0,82356.0,0.5436344]
[1743275778705,0.12406871,82357.0,82356.0,0.5436344]
[1743275778908,0.00360001,82357.0,82356.0,0.5436344]
[1743275779212,0.002,82357.0,82356.0,0.5436344]
[1743275779905,0.00360001,82357.0,82356.0,0.5436344]
[1743275780113,0.002,82357.0,82356.0,0.5436344]
[1743275780407,0.1234687,82357.0,82356.0,0.5436344]
[1743275780612,0.12406871,82357.0,82356.0,0.5436344]
[1743275782009,0.00260001,82357.0,82356.0,0.5436344]
[1743275782209,0.002,82357.0,82356.0,0.5436344]
[1743275782512,0.001,82357.0,82356.0,0.5436344]
[1743275783913,0.16947565,82364.0,82356.0,0.5436344]
[1743275783914,0.0607318,82361.0,82360.0,0.1214643]
[1743275784116,0.06233181,82361.0,82360.0,0.1214643]
[1743275784530,0.06233181,82361.0,82360.0,0.2469643]
[1743275785006,0.06233181,82361.0,82360.0,0.26001276]
[1743275785515,0.12406281,82361.0,82360.0,0.26001276]
[1743275786200,0.00260001,82361.0,82360.0,0.26001276]
[1743275786513,0.12406281,82361.0,82360.0,0.26001276]
[1743275786900,0.00260001,82361.0,82360.0,0.26001276]
[1743275787101,0.10874635,82366.0,82365.0,0.1214569]
[1743275787308,0.10994636,82366.0,82365.0,0.4829769]
[1743275787813,0.23140176,82366.0,82365.0,0.4829769]
[1743275788013,0.10994636,82366.0,82365.0,0.6035769]
[1743275788211,0.23340176,82366.0,82365.0,0.6035769]